fUSD/lending_fUSD_20240620
["ID","MTS","AMOUNT","RATE_DAILY","PERIOD"]
[329985164,1718897441479,-21518.12458186,0.00013461,2]
[329985174,1718897441628,-250.62887664,0.00013461,2]
[329985175,1718897441640,-739.5682999,0.00013461,2]
[329985176,1718897441652,-5667.28278727,0.00013461,2]
[329985177,1718897441664,-1132.44709814,0.00013461,2]
[329985178,1718897441676,-2000.0,0.00013461,2]
[329985179,1718897441687,-17949.45679548,0.00013461,2]
[329985181,1718897441700,-8005.19999979,0.00013461,2]
[329985184,1718897441712,-163580.96301128,0.00013461,2]
[329985186,1718897441722,-21193.83460317,0.00013462,2]
[329985188,1718897441734,-11202.0043838,0.00013464,2]
[329985190,1718897441746,-703.90320097,0.00013464,2]
[329985423,1718897444040,-268.77602007,0.00013333,2]
[329985424,1718897444052,-4540.0,0.00013333,2]
[329985425,1718897444065,-1734.78366287,0.00013333,2]
[329985513,1718897444834,-17572.37653834,0.00013333,2]
[329985515,1718897444847,-1310.42936115,0.00013333,2]
[329985517,1718897444859,-369.12270208,0.00013333,2]
[329985519,1718897444871,-984.92904133,0.00013333,2]
[329985521,1718897444882,-1251.60949618,0.00013333,2]
[329985523,1718897444893,-10537.62237798,0.00013333,2]
[329985525,1718897444903,-109681.15455769,0.00013464,2]
[329985527,1718897444912,-31063.21089787,0.00013464,2]
[329985529,1718897444922,-336597.88335831,0.00013465,2]
[329985532,1718897444931,-58190.01430024,0.0001347,2]
[329985533,1718897444940,-2000.0,0.0001347,2]
[329985536,1718897444951,-200.0,0.0001347,2]
[329985538,1718897444961,-3000.0,0.0001347,2]
[329985539,1718897444970,-2025.24818,0.0001347,2]
[329985542,1718897444979,-212.90534416,0.00013471,2]
[329985543,1718897444989,-31063.21089787,0.00013473,2]
[329985545,1718897444998,-163.80590926,0.00013474,2]
[329985547,1718897445007,-336597.88335831,0.00013474,2]
[329985549,1718897445017,-163.80590926,0.00013475,2]
[329985587,1718897445341,-58190.01430024,0.00013475,2]
[329985589,1718897445351,-336597.88335831,0.00013476,2]
[329985591,1718897445361,-212.90534416,0.00013477,2]
[329985593,1718897445371,-212.90534416,0.00013477,2]
[329985595,1718897445380,-399.8448784,0.00013478,2]
[329985598,1718897445394,-531.80188952,0.00013478,2]
[329985600,1718897445405,-57258.36753232,0.00013478,2]
[329985602,1718897445416,-150.0,0.00013478,2]
[329985604,1718897445425,-312705.13073568,0.00013479,2]
[329985606,1718897445437,-330.3755325,0.00013479,2]
[329985608,1718897445449,-10158.34177193,0.00013479,2]
[329985611,1718897445461,-378.06041272,0.00013479,2]
[329985613,1718897445472,-681.83583395,0.00013479,2]
[329985615,1718897445484,-392.66360108,0.00013479,2]
[329985792,1718897447264,-500.10126801,0.00013479,2]
[329985794,1718897447276,-6499.0,0.00013479,2]
[329985796,1718897447288,-1065.01364503,0.00013479,2]
[329985799,1718897447299,-909.43819293,0.00013479,2]
[329985801,1718897447311,-489.45522871,0.00013479,2]
[329986594,1718898026315,513.57,0.00010566,2]
[329986629,1718898631582,-156.7891,0.000117,2]
[329986630,1718898631603,-658.729559,0.00011739,2]
[329986631,1718898631614,-150.0,0.00011799,2]
[329986632,1718898631624,-300.0,0.00011799,2]
[329986633,1718898631634,-184.481341,0.000118,2]
[329986634,1718898631705,-336.42917852,0.000118,2]
[329986635,1718898631718,-307.36772546,0.000118,2]
[329986636,1718898631732,-531.77659901,0.000118,2]
[329986637,1718898631749,-451.63886766,0.000118,2]
[329986638,1718898631761,-2396.27302,0.000118,2]
[329986639,1718898631778,-22426.73469024,0.000118,2]
[329986640,1718898631788,-5000.0,0.00012,2]
[329986641,1718898631798,-728.87,0.00012282,2]
[329986642,1718898631808,-250.0,0.00012302,2]
[329986643,1718898631822,-250.0,0.00012302,2]
[329986644,1718898631833,-1000.0,0.00012348,2]
[329986645,1718898631844,-584.11,0.00012349,2]
[329986646,1718898631855,-186.51,0.00012412,2]
[329986647,1718898631865,-150.0,0.00012466,2]
[329986648,1718898631876,-163.73,0.00012577,2]
[329986649,1718898631886,-1000.0,0.00012604,2]
[329986650,1718898631897,-392.9714793,0.00012604,2]
[329986651,1718898631907,-6238.69,0.00012605,2]
[329986653,1718898631918,-1156.8,0.00012605,2]
[329986655,1718898631928,-513.57,0.0001283,2]
[329986656,1718898631938,-420.0,0.00012955,2]
[329986657,1718898631948,-2267.01701663,0.00012979,2]
[329986658,1718898631958,-28630.29506476,0.0001298,2]
[329986659,1718898631968,-155.0,0.00013333,2]
[329986660,1718898631978,-29020.4252,0.00013333,2]
[329986661,1718898631988,-806.0886,0.00013333,2]
[329986662,1718898631998,-39144.67228789,0.0001335,2]
[329986663,1718898632008,-1882.3709,0.00013388,2]
[329986664,1718898632019,-1302.1643,0.00013388,2]
[329986665,1718898632029,-400.0,0.000134,4]
[329986666,1718898632039,-170.73160292,0.00013407,2]
[329986667,1718898632049,-2000.0,0.00013479,2]
[329986668,1718898632063,-200.0,0.00013479,2]
[329986669,1718898632074,-2000.0,0.00013479,2]
[329986670,1718898632084,-200.0,0.00013479,2]
[329986672,1718898632095,-3000.0,0.00013479,2]
[329986673,1718898632105,-2488.46713577,0.00013479,2]
[329986674,1718898632115,-31063.21089787,0.00013487,2]
[329986675,1718898632125,-212.90534416,0.00013487,2]
[329986676,1718898632135,-58190.01430024,0.00013488,2]
[329986677,1718898632146,-58190.01430024,0.00013489,2]
[329986678,1718898632160,-31063.21089787,0.0001349,2]
[329986679,1718898632170,-163.80590926,0.00013492,2]
[329986680,1718898632179,-212.90534416,0.00013492,2]
[329986681,1718898632189,-170.73160291,0.00013494,2]
[329986682,1718898632200,-31063.21089787,0.00013498,2]
[329986683,1718898632210,-186.64468326,0.000135,2]
[329986684,1718898632220,-900.0,0.000135,4]
[329986685,1718898632230,-170.2609461,0.000135,2]
[329986686,1718898632245,-10038.21554779,0.000135,2]
[329986687,1718898632257,-176.98889233,0.000135,2]
[329986688,1718898632267,-7500.0,0.000135,2]
[329986689,1718898632278,-219.79,0.00013507,2]
[329986690,1718898632288,-170.73160291,0.0001358,2]
[329986691,1718898632299,-185.4639996,0.0001359,2]
[329986692,1718898632309,-1195.32321866,0.00013599,2]
[329986693,1718898632321,-128184.65783514,0.000136,3]
[329986694,1718898632347,-12864.86321004,0.000136,3]
[329986695,1718898632359,-380.82981456,0.000136,3]
[329986696,1718898632381,-2034.51281324,0.000136,3]
[329986697,1718898632402,-1684.86444504,0.000136,3]
[329986698,1718898632416,-530.0,0.000136,3]
[329986701,1718898638751,-796.88214578,0.00013599,2]
[329986702,1718898638762,-3333.5419773,0.000136,3]
[329986703,1718898638776,-4930.76839209,0.000136,3]
[329986704,1718898638789,-9568.10686176,0.000136,3]
[329986705,1718898638898,-6446.00678001,0.000136,3]
[329986706,1718898638976,-20834.65949868,0.000136,3]
[329986707,1718898639001,-302.0,0.000136,3]
[329986708,1718898639093,-639.75,0.000136,3]
[329986756,1718898639818,-3532.00000001,0.000136,3]
[329986771,1718898639970,-685149.078414,0.000136,3]
[329987095,1718898646131,-444.44834743,0.00013599,2]
[329987096,1718898646150,-86.80641642,0.00013599,2]
[329987097,1718898646159,-274.63231282,0.000136,3]
[329987098,1718898646195,-424.35038744,0.000136,3]
[329987099,1718898646242,-3409.9853347,0.000136,3]
[329987101,1718898690793,179.17,0.00010959,2]
[329987102,1718898701364,895.9,0.00010959,2]
[329987103,1718898991463,536.57086543,0.00010934,2]
[329987104,1718899255013,539.3,0.0001008,2]
[329987105,1718899518099,162.6345703,0.00010934,2]
[329987163,1718899833396,-1973.22629204,0.00011022,2]
[329987164,1718899833478,-328.66855668,0.00011022,2]
[329987165,1718899833487,-1658.2968,0.00011034,2]
[329987166,1718899833497,-300.0,0.00011121,2]
[329987167,1718899833506,-1451.09727409,0.00011122,2]
[329987168,1718899833520,-2039.37676246,0.00011122,2]
[329987169,1718899833548,-3409.52596345,0.00011122,2]
[329987170,1718899833560,-214.71208682,0.00011122,2]
[329987171,1718899833571,-324.85341,0.00011122,2]
[329987172,1718899833583,-3268.48126095,0.00011122,2]
[329987173,1718899833605,-777.495996,0.00011122,2]
[329987174,1718899833635,-844.0,0.00011122,2]
[329987175,1718899833653,-470.45724623,0.00011122,2]
[329987176,1718899833663,-500.0,0.00011122,2]
[329987177,1718899833673,-1161.86973925,0.00011122,2]
[329987178,1718899833721,-538.13026075,0.00011122,2]
[329987179,1718899833731,-1000.0,0.00011122,2]
[329987180,1718899833741,-250.0,0.00011827,2]
[329987182,1718899833750,-250.0,0.00011851,2]
[329987183,1718899833761,-1000.0,0.00011897,2]
[329987184,1718899833770,-163.73,0.0001191,2]
[329987185,1718899833779,-706.68,0.0001191,2]
[329987186,1718899833789,-6900.0,0.00011944,2]
[329987187,1718899833800,-500.0,0.00011944,2]
[329987188,1718899833809,-1700.0,0.00011944,2]
[329987189,1718899833819,-1000.0,0.00011944,2]
[329987190,1718899833829,-5900.0,0.00011944,2]
[329987191,1718899833838,-250.0,0.00011951,2]
[329987192,1718899833848,-150.99,0.00011951,2]
[329987193,1718899833857,-150.0,0.00011952,2]
[329987194,1718899833867,-23890.0,0.00011957,2]
[329987195,1718899833876,-200.0,0.00011972,2]
[329987196,1718899833885,-4566.72,0.00011972,2]
[329987197,1718899833898,-553.21,0.00012005,2]
[329987198,1718899833907,-156.68,0.00012033,2]
[329987199,1718899833916,-4378.58,0.00012033,2]
[329987200,1718899833925,-420.0,0.00012219,2]
[329987201,1718899833934,-156.68,0.00012242,2]
[329987202,1718899833943,-539.3,0.00012344,2]
[329987203,1718899833953,-156.68,0.00012451,2]
[329987204,1718899833962,-2525.99,0.00012656,2]
[329987205,1718899833971,-2525.99,0.00012659,2]
[329987206,1718899833981,-156.68,0.0001266,2]
[329987207,1718899833991,-2525.99,0.00012663,2]
[329987208,1718899834000,-499.99,0.00012663,2]
[329987209,1718899834009,-2525.99,0.00012666,2]
[329987210,1718899834019,-2525.99,0.00012669,2]
[329987211,1718899834029,-2525.99,0.00012673,2]
[329987212,1718899834038,-2525.99,0.00012676,2]
[329987213,1718899834047,-2525.99,0.00012679,2]
[329987214,1718899834056,-2525.99,0.00012683,2]
[329987215,1718899834066,-2525.99,0.00012686,2]
[329987216,1718899834075,-2525.99,0.0001269,2]
[329987217,1718899834083,-2525.99,0.00012693,2]
[329987218,1718899834092,-2525.99,0.00012696,2]
[329987219,1718899834101,-2525.99,0.000127,2]
[329987220,1718899834110,-2525.99,0.00012703,2]
[329987221,1718899834119,-2525.99,0.00012706,2]
[329987222,1718899834128,-2525.99,0.0001271,2]
[329987223,1718899834137,-2525.99,0.00012713,2]
[329987224,1718899834151,-2525.99,0.00012716,2]
[329987225,1718899834161,-2525.99,0.0001272,2]
[329987226,1718899834172,-500.0,0.00012766,2]
[329987227,1718899834181,-5900.0,0.00012766,2]
[329987228,1718899834191,-1000.0,0.00012766,2]
[329987229,1718899834200,-6900.0,0.00012766,2]
[329987230,1718899834209,-1700.0,0.00012766,2]
[329987231,1718899834218,-184.89,0.00012784,2]
[329987232,1718899834228,-1072.79226688,0.00012847,2]
[329987233,1718899834238,-167.12,0.00012997,2]
[329987234,1718899834247,-173.22,0.0001316,2]
[329987235,1718899834256,-387.0026,0.00013207,2]
[329987236,1718899834265,-660.05588418,0.00013253,2]
[329987237,1718899834274,-155.0,0.00013253,2]
[329987238,1718899834284,-918.71291301,0.00013253,2]
[329987239,1718899834292,-155.0,0.00013253,2]
[329987240,1718899834302,-2490.29099852,0.00013253,2]
[329987241,1718899834311,-283.4766213,0.00013253,2]
[329987242,1718899834320,-349.25682375,0.00013253,2]
[329987243,1718899834329,-155.0,0.00013253,2]
[329987244,1718899834339,-349.25682375,0.00013253,2]
[329987245,1718899834348,-365.99020846,0.00013253,2]
[329987246,1718899834357,-177.5368,0.00013307,2]
[329987247,1718899834366,-7642.5226,0.00013307,2]
[329987248,1718899834375,-300.0,0.00013348,2]
[329987249,1718899834384,-1000.0,0.00013384,2]
[329987250,1718899834398,-984.9291,0.00013387,2]
[329987251,1718899834407,-150.0,0.000134,2]
[329987252,1718899834416,-587.0,0.00013426,2]
[329987253,1718899834425,-1000.0,0.00013489,2]
[329987254,1718899834434,-10000.0,0.000135,2]
[329987255,1718899834444,-6177.1367,0.000135,2]
[329987256,1718899834454,-12115.1825,0.000135,2]
[329987257,1718899834464,-4054.072,0.000135,2]
[329987258,1718899834474,-588.3805,0.000135,2]
[329987259,1718899834483,-400.0,0.000135,4]
[329987260,1718899834492,-187.4637931,0.000135,2]
[329987261,1718899834501,-325.76231733,0.000135,2]
[329987262,1718899834510,-300.0,0.00013528,2]
[329987263,1718899834519,-500.0,0.00013532,2]
[329987264,1718899834528,-500.0,0.00013532,2]
[329987265,1718899834537,-500.0,0.00013532,2]
[329987266,1718899834552,-500.0,0.00013532,2]
[329987267,1718899834562,-500.0,0.00013532,2]
[329987268,1718899834571,-361.219,0.00013532,2]
[329987269,1718899834580,-1000.0,0.00013532,2]
[329987270,1718899834592,-1000.0,0.00013532,2]
[329987271,1718899834601,-1000.0,0.00013532,2]
[329987272,1718899834610,-1000.0,0.00013532,2]
[329987273,1718899834622,-1000.0,0.00013532,2]
[329987274,1718899834632,-1000.0,0.00013532,2]
[329987275,1718899834649,-1000.0,0.00013532,2]
[329987276,1718899834659,-1000.0,0.00013532,2]
[329987277,1718899834669,-1000.0,0.00013532,2]
[329987278,1718899834680,-1000.0,0.00013532,2]
[329987279,1718899834693,-520.492,0.00013532,2]
[329987280,1718899834702,-300.0,0.00013544,2]
[329987281,1718899834712,-179.00886033,0.0001358,2]
[329987282,1718899834721,-179.38098978,0.0001358,2]
[329987283,1718899834731,-174.87065599,0.0001358,2]
[329987284,1718899834740,-500.0,0.00013588,2]
[329987285,1718899834749,-5900.0,0.00013588,2]
[329987286,1718899834758,-1000.0,0.00013588,2]
[329987287,1718899834766,-1700.0,0.00013588,2]
[329987288,1718899834776,-6900.0,0.00013588,2]
[329987289,1718899834785,-20132.7682558,0.00013589,2]
[329987290,1718899834793,-219.97,0.00013589,2]
[329987291,1718899834802,-185.46399961,0.0001359,2]
[329987292,1718899834811,-846.22986768,0.00013598,2]
[329987293,1718899834821,-39565.19494018,0.000136,3]
[329987294,1718899834834,-267.23393513,0.000136,3]
[329987295,1718899834845,-2783.83701633,0.000136,3]
[329987299,1718899837856,-328.19011871,0.00013598,2]
[329987300,1718899837868,-235.96312641,0.00013598,2]
[329987301,1718899837878,-2876.02882489,0.00013599,2]
[329987302,1718899837890,-123.97117511,0.00013599,2]
[329987303,1718899837902,-322.64030277,0.000136,3]
[329987304,1718899837975,-90415.25503438,0.000136,3]
[329987305,1718899837987,-454.67894768,0.000136,3]
[329987306,1718899838064,-3360.28349679,0.000136,3]
[329987307,1718899838076,-23056.5,0.000136,3]
[329987308,1718899838149,-901.37718854,0.000136,3]
[329987309,1718899838161,-539.1790548,0.000136,3]
[329987310,1718899838173,-1695.74387347,0.000136,3]
[329987311,1718899838184,-300.11965555,0.000136,3]
[329987312,1718899838197,-1522.57839701,0.000136,3]
[329987325,1718899839868,-1717.39647589,0.0001358,2]
[329987326,1718899840054,-7724.61182034,0.0001358,2]
[329987327,1718899840065,-1140.24530007,0.000136,3]
[329987328,1718899840077,-3137.59487043,0.000136,3]
[329987329,1718899840089,-3602.21195516,0.000136,3]
[329987330,1718899840102,-4128.63986883,0.000136,3]
[329987331,1718899840114,-3933.36463944,0.000136,3]
[329987332,1718899840127,-4432.26839026,0.000136,3]
[329987333,1718899840138,-6757.96750055,0.000136,3]
[329987334,1718899840156,-39335.07785512,0.000136,3]
[329987335,1718899840168,-1617.592005,0.000136,3]
[329987336,1718899840179,-1363.68834929,0.000136,3]
[329987337,1718899840191,-2023.404,0.000136,3]
[329987338,1718899840207,-649.0956,0.000136,3]
[329987339,1718899840218,-629.60393104,0.000136,3]
[329987340,1718899840230,-3944.06337833,0.000136,3]
[329987341,1718899840242,-728.05842579,0.000136,3]
[329987342,1718899840254,-861.78488582,0.000136,3]
[329987343,1718899840271,-540.18000005,0.000136,3]
[329987344,1718899840323,-6672.8675867,0.000136,3]
[329987345,1718899840335,-37573.50822376,0.000136,3]
[329987346,1718899840630,-16854.06199878,0.000136,3]
[329987347,1718899840644,-3512.54571817,0.000136,3]
[329987348,1718899840670,-1062.73661376,0.000136,3]
[329987349,1718899840689,-42581.48907596,0.000136,3]
[329987350,1718899840706,-510.98056953,0.000136,3]
[329987368,1718899842941,-155.20249672,0.00013253,2]
[329987369,1718899842951,-365.99020846,0.00013253,2]
[329987370,1718899842961,-18580.74993656,0.00013253,2]
[329987371,1718899842972,-930.87434704,0.00013253,2]
[329987372,1718899842983,-18892.58799307,0.000136,3]
[329987373,1718899842995,-13285.95905001,0.000136,3]
[329987374,1718899843027,-276.224985,0.000136,3]
[329987375,1718899843040,-717.75861333,0.000136,3]
[329987376,1718899843081,-1502.35083163,0.000136,3]
[329987377,1718899843108,-392.46957639,0.000136,3]
[329987378,1718899843204,-660.05588418,0.00013206,2]
[329987379,1718899843216,-86522.42971742,0.000136,3]
[329987388,1718899845955,-893.37,0.00013193,2]
[329987389,1718899845965,-1195.24332376,0.00013253,2]
[329987390,1718899845974,-718.39372626,0.00013253,2]
[329987391,1718899846058,-350.90666966,0.00013253,2]
[329987392,1718899846068,-1251.17588355,0.00013253,2]
[329987393,1718899846078,-17.26744679,0.00013253,2]
[329987394,1718899846090,-251.91256395,0.00013253,2]
[329987395,1718899846099,-558.27181105,0.000135,2]
[329987396,1718899846111,-118.4014602,0.000135,2]
[329987397,1718899846121,-12859.1985398,0.000136,3]
[329987398,1718899846132,-346.44906839,0.000136,3]
[329987399,1718899846494,-992.22708595,0.000135,2]
[329987400,1718899846503,-28005.53570236,0.000136,3]
[329987402,1718899846513,-200.0,0.000136,2]
[329987404,1718899846522,-200.0,0.000136,2]
[329987405,1718899846531,-800.0,0.000136,4]
[329987406,1718899846541,-1066.0,0.0001368,2]
[329987407,1718899846556,-510338.52306367,0.0001368,2]
[329987408,1718899846565,-127163.55779918,0.0001368,2]
[329987409,1718899846577,-518.75421897,0.0001368,2]
[329987410,1718899846588,-647.58064741,0.0001368,2]
[329987411,1718899846616,-140000.0,0.0001368,2]
[329987412,1718899846643,-16180.5,0.0001368,2]
[329987413,1718899857108,155.25433982,0.00010934,2]
[329987414,1718899870055,155.15092711,0.00010934,2]
[329987415,1718899920358,606.96,9.996e-05,2]
[329987416,1718899937851,20296.42263375,0.00010934,2]
[329987417,1718899941041,200.05589677,0.00010934,2]
[329987418,1718899941675,230.64165649,0.00010934,2]
[329987419,1718899942195,-2000.0,0.00027444,30]
[329987420,1718899942219,-2000.0,0.00027444,30]
[329987421,1718899942241,-2000.0,0.00027444,30]
[329987422,1718899942263,-2000.0,0.00027444,30]
[329987423,1718899942286,-2000.0,0.00027444,30]
[329987424,1718899942309,-2000.0,0.00027444,30]
[329987425,1718899942331,-1000.0,0.00027444,30]
[329987426,1718899942353,-237.3061028,0.00027444,60]
[329987427,1718899942375,-1000.0,0.00027444,30]
[329987428,1718899942612,-1000.0,0.00027444,30]
[329987429,1718899942636,-1000.0,0.00027444,60]
[329987430,1718899942659,-1000.0,0.00027444,30]
[329987431,1718899942682,-1000.0,0.00027444,30]
[329987432,1718899942705,-1000.0,0.00027444,120]
[329987433,1718899942727,-1000.0,0.00027444,30]
[329987434,1718899942750,-451.82275884,0.00027444,30]
[329987435,1718899942775,-1000.0,0.00027444,30]
[329987436,1718899942797,-1000.0,0.00027444,30]
[329987437,1718899942820,-1000.0,0.00027444,30]
[329987438,1718899942842,-1000.0,0.00027444,30]
[329987439,1718899942865,-1000.0,0.00027444,30]
[329987440,1718899942888,-537.41442892,0.00027444,30]
[329987441,1718899942910,-1000.0,0.00027444,60]
[329987442,1718899942933,-1000.0,0.00027444,60]
[329987443,1718899942955,-1000.0,0.00027444,30]
[329987444,1718899942978,-1000.0,0.00027444,120]
[329987445,1718899943000,-1000.0,0.00027444,30]
[329987446,1718899943023,-1000.0,0.00027444,60]
[329987447,1718899943046,-1000.0,0.00027444,30]
[329987448,1718899943069,-1000.0,0.00027444,60]
[329987449,1718899943092,-1000.0,0.00027444,30]
[329987450,1718899943114,-1000.0,0.00027444,30]
[329987451,1718899943136,-1000.0,0.00027444,60]
[329987452,1718899943159,-1000.0,0.00027444,120]
[329987453,1718899943180,-190.0,0.00027444,30]
[329987454,1718899943205,-190.0,0.00027444,30]
[329987455,1718899943229,-190.0,0.00027444,30]
[329987456,1718899943252,-200.0,0.00027444,30]
[329987457,1718899943276,-181.0,0.00027444,30]
[329987458,1718899943299,-1000.0,0.00027444,60]
[329987459,1718899943321,-1000.0,0.00027444,30]
[329987460,1718899943345,-160.0,0.00027444,30]
[329987461,1718899943367,-160.0,0.00027444,30]
[329987462,1718899943390,-248.8969088,0.00027444,30]
[329987463,1718899943412,-482.19908758,0.00027444,30]
[329987464,1718899943434,-360.38378994,0.00027444,30]
[329987465,1718899943458,-153.73368651,0.00027444,30]
[329987466,1718899943480,-832.9557103,0.00027444,30]
[329987467,1718899943505,-1330.54038144,0.00027444,30]
[329987468,1718899943530,-697.51097642,0.00027444,30]
[329987469,1718899943553,-520.58235549,0.00027444,30]
[329987470,1718899943576,-259.42308419,0.00027444,30]
[329987471,1718899943604,-205.86426966,0.00027444,120]
[329987472,1718899943629,-815.8810773,0.00027444,30]
[329987473,1718899943651,-823.68481751,0.00027444,30]
[329987474,1718899943677,-658.62245645,0.00027444,30]
[329987475,1718899943700,-197.08636337,0.00027444,30]
[329987476,1718899943722,-916.58288045,0.00027444,30]
[329987477,1718899943746,-195.57210232,0.00027444,30]
[329987478,1718899943770,-332.48937556,0.00027444,30]
[329987479,1718899943794,-215.11275413,0.00027444,120]
[329987480,1718899943818,-500.0,0.00027444,30]
[329987481,1718899943842,-281.11262818,0.00027444,120]
[329987482,1718899943864,-843.10182257,0.00027444,30]
[329987483,1718899943887,-192.71197763,0.00027444,30]
[329987484,1718899943910,-601.29204909,0.00027444,30]
[329987485,1718899943933,-1207.55583943,0.00027444,30]
[329987486,1718899943957,-252.41436282,0.00027444,30]
[329987487,1718899943981,-1459.30364689,0.00027444,120]
[329987488,1718899944005,-1091.25005688,0.00027444,30]
[329987489,1718899944031,-285.72165397,0.00027444,30]
[329987490,1718899944056,-287.28865014,0.00027444,120]
[329987491,1718899944082,-266.0,0.00027444,30]
[329987492,1718899944109,-270.4067916,0.00027444,120]
[329987493,1718899944136,-3000.0,0.00027444,30]
[329987494,1718899944162,-3000.0,0.00027444,35]
[329987495,1718899944187,-3000.0,0.00027444,40]
[329987496,1718899944213,-3000.0,0.00027444,45]
[329987497,1718899944239,-3000.0,0.00027444,45]
[329987498,1718899944266,-3000.0,0.00027444,50]
[329987499,1718899944296,-10000.0,0.00027444,30]
[329987500,1718899944320,-3407.30481176,0.00027444,120]
[329987501,1718899944345,-2067.9857,0.00027444,30]
[329987502,1718899944369,-1076.37523185,0.00027444,120]
[329987503,1718899944393,-155.67625596,0.00027444,30]
[329987504,1718899944417,-182.65367238,0.00027444,30]
[329987505,1718899944440,-365.03287329,0.00027444,30]
[329987506,1718899944464,-4846.90367572,0.00027444,30]
[329987507,1718899944488,-980.0,0.00027444,30]
[329987508,1718899944512,-525.0,0.00027444,30]
[329987509,1718899944538,-2625.0,0.00027444,30]
[329987510,1718899944561,-2625.0,0.00027444,30]
[329987511,1718899944587,-2625.0,0.00027444,30]
[329987512,1718899944614,-577.0,0.00027444,120]
[329987513,1718899944638,-3000.0,0.00027444,30]
[329987514,1718899944663,-4900.0,0.00027444,30]
[329987515,1718899944689,-38448.999997,0.00027444,120]
[329987516,1718899944712,-154.34737973,0.00027444,30]
[329987517,1718899944736,-1690.9,0.00027444,60]
[329987518,1718899944761,-5000.0,0.00027444,120]
[329987519,1718899944788,-5000.0,0.00027444,120]
[329987520,1718899944813,-5000.0,0.00027444,120]
[329987521,1718899944838,-5000.0,0.00027444,120]
[329987522,1718899944865,-271.00842335,0.00027444,120]
[329987523,1718899944891,-9065.91009211,0.00027444,99]
[329987524,1718899944916,-379.93524382,0.00027444,30]
[329987525,1718899944943,-50000.0,0.00027444,30]
[329987526,1718899944970,-50000.0,0.00027444,31]
[329987527,1718899944996,-50000.0,0.00027444,32]
[329987528,1718899945022,-50000.0,0.00027444,33]
[329987529,1718899945046,-4080.47286728,0.00027444,120]
[329987530,1718899945070,-446.0,0.00027444,120]
[329987531,1718899945267,-20000.0,0.00027444,30]
[329987532,1718899945299,-50000.0,0.00027444,60]
[329987533,1718899945329,-20000.0,0.00027444,30]
[329987534,1718899945357,-26209.112648,0.00027444,45]
[329987535,1718899945385,-30000.0,0.00027444,90]
[329987536,1718899945412,-30000.0,0.00027444,30]
[329987537,1718899945438,-5400.0,0.00027444,30]
[329987538,1718899945468,-155.51293369,0.00027444,120]
[329987539,1718899945496,-366.0,0.00027444,120]
[329987540,1718899945530,-2288.85361283,0.00027444,120]
[329987541,1718899945555,-1047.50523929,0.00027444,120]
[329987542,1718899945581,-200.0,0.00027444,30]
[329987543,1718899945612,-245.0,0.00027444,30]
[329987544,1718899945637,-176.62524842,0.00027444,30]
[329987545,1718899945662,-812.56012437,0.00027444,120]
[329987546,1718899945690,-1007.399999,0.00027444,30]
[329987547,1718899945715,-1000.0,0.00027444,30]
[329987548,1718899945740,-1000.0,0.00027444,30]
[329987549,1718899945763,-1000.0,0.00027444,30]
[329987550,1718899945794,-1000.0,0.00027444,30]
[329987551,1718899945818,-1000.0,0.00027444,30]
[329987552,1718899945842,-1000.0,0.00027444,30]
[329987553,1718899945866,-1000.0,0.00027444,30]
[329987554,1718899945890,-1000.0,0.00027444,30]
[329987555,1718899945915,-1000.0,0.00027444,30]
[329987556,1718899945938,-1000.0,0.00027444,30]
[329987557,1718899945962,-1000.0,0.00027444,30]
[329987558,1718899945987,-1000.0,0.00027444,30]
[329987559,1718899946010,-1000.0,0.00027444,30]
[329987560,1718899946037,-1000.0,0.00027444,30]
[329987561,1718899946062,-1000.0,0.00027444,30]
[329987562,1718899946086,-1000.0,0.00027444,30]
[329987563,1718899946111,-1000.0,0.00027444,30]
[329987564,1718899946134,-1000.0,0.00027444,30]